fUSD/lending_fUSD_20250606
["ID","MTS","AMOUNT","RATE_DAILY","PERIOD"]
[364730864,1749221433645,-500.0,0.00030163,2]
[364730866,1749221433655,-500.0,0.00030163,2]
[364730868,1749221433664,-195.28868433,0.00030163,2]
[364730870,1749221433674,-490.6390228,0.00030163,2]
[364730872,1749221433685,-322.59119965,0.00030163,2]
[364730874,1749221433694,-193.28225821,0.00030163,2]
[364730876,1749221433705,-500.0,0.00030163,2]
[364730877,1749221433715,-500.0,0.00030163,2]
[364730878,1749221433725,-500.0,0.00030163,2]
[364730879,1749221433735,-500.0,0.00030163,2]
[364730880,1749221433745,-500.0,0.00030163,2]
[364730881,1749221433754,-500.0,0.00030163,2]
[364730882,1749221433764,-500.0,0.00030163,2]
[364730883,1749221433839,-500.0,0.00030163,2]
[364730885,1749221433850,-500.0,0.00030163,2]
[364730887,1749221433861,-500.0,0.00030163,2]
[364730889,1749221433870,-500.0,0.00030163,2]
[364730891,1749221433879,-500.0,0.00030163,2]
[364730893,1749221433889,-500.0,0.00030163,2]
[364730895,1749221433899,-500.0,0.00030163,2]
[364730897,1749221433908,-500.0,0.00030163,2]
[364730899,1749221433917,-500.0,0.00030163,2]
[364730901,1749221433926,-500.0,0.00030163,2]
[364730903,1749221433937,-500.0,0.00030163,2]
[364730905,1749221433947,-500.0,0.00030163,2]
[364730907,1749221433956,-500.0,0.00030163,2]
[364730909,1749221433966,-500.0,0.00030163,2]
[364730911,1749221433975,-500.0,0.00030163,2]
[364730913,1749221433987,-500.0,0.00030163,2]
[364730915,1749221433996,-321.963416,0.00030163,2]
[364730917,1749221434005,-151.0,0.00030164,7]
[364730919,1749221434015,-151.0,0.00030164,7]
[364730921,1749221434024,-155.272368,0.00030164,7]
[364730923,1749221434034,-151.0,0.00030164,7]
[364730925,1749221434043,-151.0,0.00030164,7]
[364730927,1749221434053,-457.36157111,0.00030164,7]
[364730929,1749221434062,-480.0,0.00030164,7]
[364730931,1749221434071,-480.0,0.00030164,7]
[364730933,1749221434081,-616.5657757,0.00030164,7]
[364730935,1749221434090,-1204.059414,0.00030164,7]
[364730937,1749221434099,-1120.745891,0.00030164,7]
[364730939,1749221434109,-480.0,0.00030164,7]
[364730941,1749221434118,-480.0,0.00030164,7]
[364730943,1749221434127,-480.0,0.00030164,7]
[364730945,1749221434137,-480.0,0.00030164,7]
[364730946,1749221434146,-480.0,0.00030164,7]
[364730948,1749221434155,-600.0,0.00030164,30]
[364730950,1749221434165,-480.0,0.00030164,7]
[364730952,1749221434174,-200.46890418,0.00030164,7]
[364730954,1749221434186,-480.0,0.00030164,7]
[364730956,1749221434195,-480.0,0.00030164,7]
[364730958,1749221434204,-480.0,0.00030164,7]
[364730959,1749221434214,-727.01,0.00030164,7]
[364730961,1749221434223,-480.0,0.00030164,7]
[364730963,1749221434232,-480.0,0.00030164,7]
[364730965,1749221434242,-500.0,0.00030164,2]
[364730967,1749221434252,-500.0,0.00030164,2]
[364730969,1749221434261,-500.0,0.00030164,2]
[364730971,1749221434271,-500.0,0.00030164,2]
[364730973,1749221434280,-500.0,0.00030164,2]
[364730975,1749221434290,-500.0,0.00030164,2]
[364730977,1749221434299,-500.0,0.00030164,2]
[364730979,1749221434308,-500.0,0.00030164,2]
[364730981,1749221434317,-500.0,0.00030164,2]
[364730983,1749221434327,-480.0,0.00030164,7]
[364730985,1749221434336,-500.0,0.00030164,2]
[364730987,1749221434345,-500.0,0.00030164,2]
[364730989,1749221434354,-500.0,0.00030164,2]
[364730991,1749221434363,-500.0,0.00030164,2]
[364730992,1749221434373,-500.0,0.00030164,2]
[364730994,1749221434382,-500.0,0.00030164,2]
[364730996,1749221434391,-500.0,0.00030164,2]
[364730998,1749221434400,-218.59966003,0.00030164,2]
[364731000,1749221434410,-367.04837545,0.00030164,7]
[364731002,1749221434419,-480.0,0.00030164,7]
[364731004,1749221434430,-480.0,0.00030164,7]
[364731006,1749221434440,-500.01,0.00030164,7]
[364731008,1749221434449,-460.00088065,0.00030164,7]
[364731010,1749221434459,-480.0,0.00030164,7]
[364731012,1749221434469,-480.0,0.00030164,7]
[364731014,1749221434478,-576.1,0.00030164,7]
[364731016,1749221434487,-480.0,0.00030164,7]
[364731018,1749221434496,-558.51025321,0.00030164,7]
[364731020,1749221434505,-480.0,0.00030164,7]
[364731022,1749221434514,-500.0,0.00030164,7]
[364731023,1749221434524,-480.0,0.00030164,7]
[364731025,1749221434533,-480.0,0.00030164,7]
[364731027,1749221434544,-480.0,0.00030164,7]
[364731029,1749221434553,-480.0,0.00030164,7]
[364731031,1749221434562,-480.0,0.00030164,7]
[364731033,1749221434572,-480.0,0.00030164,7]
[364731035,1749221434582,-577.12,0.00030164,7]
[364731037,1749221434591,-480.0,0.00030164,7]
[364731039,1749221434601,-480.0,0.00030164,7]
[364731041,1749221434610,-480.0,0.00030164,7]
[364731043,1749221434619,-480.0,0.00030164,7]
[364731045,1749221434629,-480.0,0.00030164,7]
[364731047,1749221434639,-480.0,0.00030164,7]
[364731049,1749221434649,-480.0,0.00030164,7]
[364731051,1749221434658,-480.0,0.00030164,7]
[364731053,1749221434668,-480.0,0.00030164,7]
[364731055,1749221434680,-480.0,0.00030164,7]
[364731057,1749221434690,-480.0,0.00030164,7]
[364731059,1749221434699,-480.0,0.00030164,7]
[364731061,1749221434709,-480.0,0.00030164,7]
[364731063,1749221434718,-480.0,0.00030164,7]
[364731065,1749221434728,-480.0,0.00030164,7]
[364731066,1749221434737,-480.0,0.00030164,7]
[364731069,1749221434747,-480.0,0.00030164,7]
[364731070,1749221434756,-311.21404321,0.00030164,7]
[364731072,1749221434767,-480.0,0.00030164,7]
[364731074,1749221434779,-746.34,0.00030164,7]
[364731076,1749221434789,-480.0,0.00030164,7]
[364731078,1749221434799,-480.0,0.00030164,7]
[364731080,1749221434809,-480.0,0.00030164,7]
[364731082,1749221434818,-474.60560793,0.00030164,7]
[364731116,1749221435134,-5.39439207,0.00030164,7]
[364731118,1749221435145,-480.0,0.00030164,7]
[364731120,1749221435155,-480.0,0.00030164,2]
[364731122,1749221435164,-714.84,0.00030164,7]
[364731124,1749221435173,-702.32,0.00030164,7]
[364731126,1749221435184,-480.0,0.00030164,7]
[364731128,1749221435194,-547.06,0.00030164,2]
[364731130,1749221435203,-968.26,0.00030164,7]
[364731132,1749221435212,-480.0,0.00030164,7]
[364731134,1749221435222,-480.0,0.00030164,7]
[364731136,1749221435231,-435.33670651,0.00030164,7]
[364731138,1749221435242,-480.0,0.00030164,7]
[364731140,1749221435251,-480.0,0.00030164,7]
[364731142,1749221435261,-480.0,0.00030164,7]
[364731144,1749221435270,-657.45,0.00030164,7]
[364731145,1749221435279,-848.86,0.00030164,7]
[364731147,1749221435288,-480.0,0.00030164,7]
[364731149,1749221435299,-480.0,0.00030164,7]
[364731151,1749221435308,-480.0,0.00030164,7]
[364731153,1749221435318,-704.68,0.00030164,7]
[364731155,1749221435327,-480.0,0.00030164,7]
[364731158,1749221435337,-970.75,0.00030164,7]
[364731159,1749221435346,-780.56,0.00030164,7]
[364731161,1749221435355,-480.0,0.00030164,7]
[364731163,1749221435365,-480.0,0.00030164,7]
[364731165,1749221435374,-485.18,0.00030164,7]
[364731167,1749221435384,-1035.78,0.00030164,7]
[364731169,1749221435394,-480.0,0.00030164,7]
[364731171,1749221435403,-480.0,0.00030164,7]
[364731173,1749221435413,-572.92,0.00030164,7]
[364731175,1749221435422,-480.0,0.00030164,7]
[364731177,1749221435433,-480.0,0.00030164,7]
[364731179,1749221435442,-480.0,0.00030164,7]
[364731181,1749221435452,-480.0,0.00030164,7]
[364731183,1749221435461,-623.9,0.00030164,7]
[364731185,1749221435471,-480.0,0.00030164,7]
[364731187,1749221435481,-480.0,0.00030164,7]
[364731189,1749221435491,-480.0,0.00030164,7]
[364731191,1749221435501,-480.0,0.00030164,7]
[364731193,1749221435511,-845.43,0.00030164,7]
[364731195,1749221435520,-480.0,0.00030164,7]
[364731197,1749221435529,-480.0,0.00030164,7]
[364731199,1749221435539,-480.0,0.00030164,7]
[364731201,1749221435549,-480.0,0.00030164,7]
[364731203,1749221435558,-480.0,0.00030164,7]
[364731205,1749221435568,-424.4399416,0.00030164,7]
[364731207,1749221435577,-546.68,0.00030164,7]
[364731209,1749221435586,-653.53,0.00030164,7]
[364731211,1749221435595,-498.39,0.00030164,7]
[364731213,1749221435604,-480.0,0.00030164,7]
[364731215,1749221435614,-480.0,0.00030164,7]
[364731217,1749221435623,-480.0,0.00030164,7]
[364731219,1749221435632,-1019.27,0.00030164,7]
[364731221,1749221435641,-522.98,0.00030164,7]
[364731223,1749221435651,-197.84165642,0.00030164,7]
[364731225,1749221435660,-480.0,0.00030164,7]
[364731227,1749221435670,-480.0,0.00030164,7]
[364731229,1749221435680,-480.0,0.00030164,7]
[364731231,1749221435689,-480.0,0.00030164,7]
[364731233,1749221435699,-480.0,0.00030164,7]
[364731235,1749221435708,-725.0,0.00030164,7]
[364731237,1749221435717,-683.64,0.00030164,7]
[364731239,1749221435726,-480.0,0.00030164,7]
[364731241,1749221435736,-480.0,0.00030164,7]
[364731243,1749221435745,-480.0,0.00030164,7]
[364731245,1749221435754,-480.0,0.00030164,7]
[364731247,1749221435763,-533.82,0.00030164,7]
[364731249,1749221435775,-480.0,0.00030164,7]
[364731251,1749221435784,-512.71954326,0.00030164,7]
[364731253,1749221435794,-480.0,0.00030164,7]
[364731255,1749221435803,-543.4,0.00030164,7]
[364731257,1749221435813,-480.0,0.00030164,7]
[364731259,1749221435823,-480.0,0.00030164,7]
[364731261,1749221435833,-480.0,0.00030164,7]
[364731263,1749221435844,-480.0,0.00030164,7]
[364731265,1749221435855,-732.02,0.00030164,7]
[364731266,1749221435864,-779.37,0.00030164,7]
[364731268,1749221435873,-596.46,0.00030164,7]
[364731270,1749221435883,-480.0,0.00030164,7]
[364731272,1749221435892,-630.05,0.00030164,7]
[364731274,1749221435901,-480.0,0.00030164,7]
[364731276,1749221435911,-850.81,0.00030164,7]
[364731278,1749221435921,-832.19,0.00030164,7]
[364731280,1749221435931,-480.0,0.00030164,7]
[364731282,1749221435940,-480.0,0.00030164,7]
[364731284,1749221435950,-738.22,0.00030164,7]
[364731286,1749221435959,-480.0,0.00030164,7]
[364731288,1749221435968,-480.0,0.00030164,7]
[364731290,1749221435977,-480.0,0.00030164,7]
[364731292,1749221435987,-480.0,0.00030164,7]
[364731294,1749221435996,-642.92,0.00030164,7]
[364731296,1749221436005,-660.86,0.00030164,7]
[364731298,1749221436014,-480.0,0.00030164,7]
[364731300,1749221436023,-480.0,0.00030164,7]
[364731302,1749221436033,-549.36,0.00030164,7]
[364731304,1749221436042,-1081.84,0.00030164,7]
[364731306,1749221436051,-480.0,0.00030164,7]
[364731308,1749221436060,-558.51,0.00030164,7]
[364731310,1749221436070,-636.27,0.00030164,7]
[364731312,1749221436079,-480.0,0.00030164,7]
[364731314,1749221436089,-480.0,0.00030164,7]
[364731316,1749221436098,-644.07,0.00030164,7]
[364731318,1749221436108,-499.33,0.00030164,7]
[364731320,1749221436116,-433.67008369,0.00030164,7]
[364731322,1749221436125,-480.0,0.00030164,7]
[364731324,1749221436135,-480.0,0.00030164,7]
[364731326,1749221436144,-480.0,0.00030164,7]
[364731328,1749221436153,-480.0,0.00030164,7]
[364731330,1749221436163,-630.46,0.00030164,7]
[364731332,1749221436172,-1342.27,0.00030164,7]
[364731334,1749221436183,-480.0,0.00030164,7]
[364731336,1749221436192,-1363.23,0.00030164,7]
[364731338,1749221436201,-480.0,0.00030164,7]
[364731340,1749221436211,-737.98,0.00030164,7]
[364731342,1749221436220,-679.19,0.00030164,7]
[364731344,1749221436229,-480.0,0.00030164,7]
[364731346,1749221436238,-853.6,0.00030164,7]
[364731348,1749221436248,-1373.2,0.00030164,7]
[364731350,1749221436256,-592.73,0.00030164,7]
[364731352,1749221436266,-684.01,0.00030164,7]
[364731354,1749221436275,-763.13,0.00030164,7]
[364731356,1749221436284,-480.0,0.00030164,7]
[364731357,1749221436294,-480.0,0.00030164,7]
[364731358,1749221436304,-228.79945122,0.00030164,7]
[364731359,1749221436313,-480.0,0.00030164,7]
[364731360,1749221436322,-490.12848269,0.00030164,7]
[364731361,1749221436331,-480.0,0.00030164,7]
[364731362,1749221436341,-1482.23,0.00030164,7]
[364731363,1749221436350,-591.49,0.00030164,7]
[364731364,1749221436360,-719.82,0.00030164,7]
[364731365,1749221436369,-250.0,0.00030164,7]
[364731366,1749221436379,-480.0,0.00030164,7]
[364731367,1749221436388,-492.77,0.00030164,7]
[364731368,1749221436398,-480.0,0.00030164,7]
[364731370,1749221436407,-480.0,0.00030164,7]
[364731372,1749221436417,-438.90016387,0.00030164,7]
[364731374,1749221436427,-480.0,0.00030164,7]
[364731376,1749221436437,-480.0,0.00030164,7]
[364731378,1749221436446,-494.21545318,0.00030164,7]
[364731380,1749221436455,-1940.61,0.00030164,7]
[364731382,1749221436464,-480.0,0.00030164,7]
[364731384,1749221436474,-1046.47,0.00030164,7]
[364731386,1749221436483,-480.0,0.00030164,7]
[364731388,1749221436493,-1080.77,0.00030164,7]
[364731390,1749221436502,-480.0,0.00030164,7]
[364731392,1749221436512,-480.0,0.00030164,7]
[364731394,1749221436521,-480.0,0.00030164,7]
[364731396,1749221436530,-798.29,0.00030164,7]
[364731398,1749221436539,-480.0,0.00030164,7]
[364731400,1749221436549,-480.0,0.00030164,7]
[364731402,1749221436558,-754.3,0.00030164,7]
[364731404,1749221436567,-6436.66,0.00030164,7]
[364731406,1749221436577,-512.6,0.00030164,7]
[364731408,1749221436586,-480.0,0.00030164,7]
[364731410,1749221436595,-10658.04,0.00030164,7]
[364731412,1749221436604,-480.0,0.00030164,7]
[364731414,1749221436614,-509.73,0.00030164,7]
[364731416,1749221436623,-1129.4,0.00030164,7]
[364731418,1749221436632,-480.0,0.00030164,7]
[364731420,1749221436642,-1117.63,0.00030164,7]
[364731422,1749221436651,-1388.22,0.00030164,7]
[364731424,1749221436660,-822.48,0.00030164,7]
[364731426,1749221436669,-934.25,0.00030164,7]
[364731428,1749221436678,-480.0,0.00030164,7]
[364731430,1749221436688,-5470.65,0.00030164,7]
[364731432,1749221436697,-1183.39,0.00030164,7]
[364731433,1749221436706,-1361.82,0.00030164,7]
[364731436,1749221436716,-480.0,0.00030164,7]
[364731438,1749221436726,-7053.32,0.00030164,7]
[364731439,1749221436735,-1740.96,0.00030164,7]
[364731442,1749221436745,-565.16,0.00030164,7]
[364731444,1749221436755,-679.87,0.00030164,7]
[364731446,1749221436765,-1853.1,0.00030164,7]
[364731448,1749221436780,-690.67,0.00030164,7]
[364731450,1749221436789,-495.8,0.00030164,7]
[364731452,1749221436799,-480.0,0.00030164,7]
[364731454,1749221436808,-2495.56,0.00030164,7]
[364731456,1749221436818,-480.0,0.00030164,7]
[364731458,1749221436828,-577.97,0.00030164,7]
[364731460,1749221436838,-480.0,0.00030164,7]
[364731462,1749221436848,-480.0,0.00030164,7]
[364731464,1749221436857,-1942.24,0.00030164,7]
[364731466,1749221436866,-480.0,0.00030164,7]
[364731468,1749221436876,-680.0,0.00030164,7]
[364731470,1749221436886,-1387.0,0.00030164,7]
[364731472,1749221436895,-480.0,0.00030164,7]
[364731474,1749221436904,-515.13,0.00030164,7]
[364731476,1749221436914,-508.47,0.00030164,7]
[364731478,1749221436923,-615.23,0.00030164,7]
[364731480,1749221436933,-480.0,0.00030164,7]
[364731482,1749221436943,-1078.82,0.00030164,7]
[364731484,1749221436952,-480.0,0.00030164,7]
[364731486,1749221436962,-480.0,0.00030164,7]
[364731488,1749221436971,-3949.16,0.00030164,7]
[364731490,1749221436980,-758.09,0.00030164,7]
[364731492,1749221436989,-855.27,0.00030164,7]
[364731494,1749221436999,-1000.0,0.00030164,2]
[364731496,1749221437008,-1250.68,0.00030164,7]
[364731498,1749221437018,-480.0,0.00030164,7]
[364731500,1749221437028,-2642.03,0.00030164,7]
[364731502,1749221437038,-961.88,0.00030164,7]
[364731504,1749221437047,-480.0,0.00030164,7]
[364731506,1749221437057,-480.0,0.00030164,7]
[364731508,1749221437067,-480.0,0.00030164,7]
[364731510,1749221437076,-480.0,0.00030164,7]
[364731512,1749221437086,-764.6,0.00030164,7]
[364731514,1749221437096,-480.0,0.00030164,7]
[364731516,1749221437105,-643.15,0.00030164,7]
[364731518,1749221437115,-1223.22,0.00030164,7]
[364731520,1749221437125,-480.0,0.00030164,7]
[364731522,1749221437134,-480.0,0.00030164,7]
[364731524,1749221437143,-480.0,0.00030164,7]
[364731526,1749221437153,-480.0,0.00030164,7]
[364731528,1749221437163,-895.81,0.00030164,7]
[364731530,1749221437173,-480.0,0.00030164,7]
[364731532,1749221437183,-600.33,0.00030164,7]
[364731534,1749221437193,-480.2276776,0.00030164,7]
[364731536,1749221437203,-2178.95,0.00030164,7]
[364731539,1749221437213,-480.0,0.00030164,7]
[364731541,1749221437222,-480.0,0.00030164,7]
[364731542,1749221437232,-1054.29,0.00030164,7]
[364731545,1749221437242,-2712.16,0.00030164,7]
[364731547,1749221437252,-1873.3,0.00030164,7]
[364731549,1749221437262,-480.0,0.00030164,7]
[364731551,1749221437271,-480.0,0.00030164,7]
[364731553,1749221437281,-1414.11,0.00030164,7]
[364731555,1749221437291,-6489.03,0.00030164,7]
[364731557,1749221437301,-480.0,0.00030164,7]
[364731559,1749221437312,-480.0,0.00030164,7]
[364731561,1749221437322,-3629.25,0.00030164,7]
[364731563,1749221437333,-480.0,0.00030164,7]
[364731565,1749221437342,-480.0,0.00030164,7]
[364731567,1749221437351,-3638.56,0.00030164,7]
[364731569,1749221437361,-480.0,0.00030164,7]
[364731571,1749221437371,-1567.91,0.00030164,7]
[364731573,1749221437380,-480.0,0.00030164,7]
[364731575,1749221437390,-1037.05,0.00030164,7]
[364731577,1749221437401,-3148.72,0.00030164,7]
[364731579,1749221437411,-652.79,0.00030164,7]
[364731581,1749221437420,-598.19,0.00030164,7]
[364731583,1749221437430,-42694.88,0.00030164,7]
[364731585,1749221437441,-480.0,0.00030164,7]
[364731587,1749221437452,-537.67,0.00030164,7]
[364731589,1749221437463,-1291.0,0.00030164,7]
[364731591,1749221437473,-480.0,0.00030164,7]
[364731593,1749221437483,-480.0,0.00030164,7]
[364731596,1749221437494,-814.08,0.00030164,7]
[364731598,1749221437504,-7417.57,0.00030164,7]
[364731600,1749221437513,-1203.77,0.00030164,7]
[364731602,1749221437524,-2686.12,0.00030164,7]
[364731604,1749221437533,-543.74,0.00030164,7]
[364731606,1749221437543,-1000.0,0.00030164,7]
[364731608,1749221437554,-2593.61,0.00030164,7]
[364731610,1749221437563,-1127.64,0.00030164,7]
[364731612,1749221437574,-1704.7,0.00030164,7]
[364731614,1749221437584,-616.0,0.00030164,7]
[364731616,1749221437593,-480.0,0.00030164,7]
[364731618,1749221437603,-480.0,0.00030164,7]
[364731620,1749221437613,-4290.57,0.00030164,7]
[364731622,1749221437622,-480.0,0.00030164,7]
[364731624,1749221437632,-8317.12,0.00030164,7]
[364731626,1749221437642,-1235.61,0.00030164,7]
[364731628,1749221437652,-615.43,0.00030164,7]
[364731630,1749221437662,-3050.73,0.00030164,7]
[364731632,1749221437671,-480.0,0.00030164,7]
[364731634,1749221437681,-2231.81,0.00030164,7]
[364731636,1749221437692,-1000.16,0.00030164,7]
[364731638,1749221437701,-480.0,0.00030164,7]
[364731640,1749221437711,-480.0,0.00030164,7]
[364731642,1749221437720,-480.0,0.00030164,7]
[364731644,1749221437730,-2465.63,0.00030164,7]
[364731646,1749221437739,-563.78,0.00030164,7]
[364731649,1749221437749,-884.55,0.00030164,7]
[364731651,1749221437759,-480.0,0.00030164,7]
[364731653,1749221437769,-546.87,0.00030164,7]
[364731655,1749221437781,-480.0,0.00030164,7]
[364731657,1749221437790,-724.68,0.00030164,7]
[364731660,1749221437800,-480.0,0.00030164,7]
[364731662,1749221437809,-480.0,0.00030164,7]
[364731664,1749221437819,-746.17,0.00030164,7]
[364731666,1749221437828,-527.1,0.00030164,7]
[364731668,1749221437838,-9747.9,0.00030164,7]
[364731670,1749221437848,-480.0,0.00030164,7]
[364731672,1749221437858,-480.0,0.00030164,7]
[364731674,1749221437868,-607.36,0.00030164,7]
[364731676,1749221437878,-480.0,0.00030164,7]
[364731678,1749221437887,-827.72,0.00030164,7]
[364731680,1749221437896,-480.0,0.00030164,7]
[364731682,1749221437905,-480.5,0.00030164,7]
[364731684,1749221437915,-1271.07,0.00030164,7]
[364731686,1749221437924,-1453.06,0.00030164,7]
[364731688,1749221437934,-645.85,0.00030164,7]
[364731690,1749221437945,-489.66,0.00030164,7]
[364731692,1749221437955,-1237.72,0.00030164,7]
[364731694,1749221437965,-1359.03,0.00030164,7]
[364731696,1749221437974,-1716.67,0.00030164,7]
[364731698,1749221437985,-668.25,0.00030164,7]
[364731700,1749221437994,-978.4,0.00030164,7]
[364731702,1749221438004,-1411.51,0.00030164,7]
[364731704,1749221438014,-480.0,0.00030164,7]
[364731706,1749221438024,-530.42,0.00030164,7]
[364731708,1749221438034,-2038.77,0.00030164,7]
[364731710,1749221438044,-2221.25,0.00030164,7]
[364731712,1749221438053,-3064.9,0.00030164,7]
[364731714,1749221438063,-1086.27,0.00030164,7]
[364731716,1749221438074,-480.0,0.00030164,7]
[364731718,1749221438084,-480.0,0.00030164,7]
[364731720,1749221438093,-480.0,0.00030164,7]
[364731722,1749221438103,-480.0,0.00030164,7]
[364731724,1749221438113,-480.0,0.00030164,7]
[364731726,1749221438123,-480.0,0.00030164,7]
[364731728,1749221438132,-2579.26,0.00030164,7]
[364731731,1749221438142,-1006.32,0.00030164,7]
[364731733,1749221438152,-627.05,0.00030164,7]
[364731735,1749221438161,-480.0,0.00030164,7]
[364731737,1749221438171,-571.49,0.00030164,7]
[364731739,1749221438182,-480.0,0.00030164,7]
[364731741,1749221438192,-480.0,0.00030164,7]
[364731743,1749221438202,-1366.33,0.00030164,7]
[364731745,1749221438212,-480.0,0.00030164,7]
[364731747,1749221438222,-480.0,0.00030164,7]
[364731749,1749221438232,-480.0,0.00030164,7]
[364731751,1749221438241,-1199.07,0.00030164,7]
[364731753,1749221438252,-2511.2,0.00030164,7]
[364731755,1749221438261,-1404.59744789,0.00030164,7]
[364731758,1749221438281,-216.98255211,0.00030164,7]
[364731760,1749221438291,-2924.05,0.00030164,7]
[364731762,1749221438302,-480.0,0.00030164,7]
[364731764,1749221438311,-497.05,0.00030164,7]
[364731766,1749221438321,-480.0,0.00030164,7]
[364731768,1749221438333,-1120.33,0.00030164,7]
[364731770,1749221438347,-935.24,0.00030164,7]
[364731772,1749221438357,-586.03,0.00030164,7]
[364731774,1749221438367,-1322.36,0.00030164,7]
[364731776,1749221438376,-480.0,0.00030164,7]
[364731778,1749221438386,-480.0,0.00030164,7]
[364731780,1749221438396,-480.0,0.00030164,7]
[364731782,1749221438406,-480.0,0.00030164,7]
[364731784,1749221438416,-623.05,0.00030164,7]
[364731786,1749221438428,-480.0,0.00030164,7]
[364731788,1749221438444,-904.54,0.00030164,7]
[364731790,1749221438456,-480.0,0.00030164,7]
[364731792,1749221438466,-480.0,0.00030164,7]
[364731794,1749221438476,-914.89,0.00030164,7]
[364731796,1749221438486,-480.0,0.00030164,7]
[364731799,1749221438497,-480.0,0.00030164,7]
[364731800,1749221438506,-12943.78,0.00030164,7]
[364731803,1749221438517,-480.0,0.00030164,7]
[364731805,1749221438527,-343.2831287,0.00030164,7]
[364731807,1749221438537,-1200.76,0.00030164,7]
[364731809,1749221438547,-355.10676728,0.00030167,2]
[364731811,1749221438557,-500.0,0.00030173,5]
[364731813,1749221438567,-500.0,0.00030173,5]
[364731815,1749221438577,-500.82830807,0.00030173,5]
[364731817,1749221438587,-167.00366002,0.00030173,5]
[364731819,1749221438597,-500.0,0.00030173,5]
[364731821,1749221438607,-187.49922482,0.00030173,5]
[364731823,1749221438617,-161.37103672,0.00030173,2]
[364731824,1749221438627,-500.0,0.00030173,5]
[364731825,1749221438636,-159.73264074,0.00030173,5]
[364731827,1749221438647,-159.82884273,0.00030173,5]
[364731828,1749221438656,-159.80637064,0.00030173,5]
[364731829,1749221438666,-856.47746817,0.00030191,2]
[364731830,1749221438678,-1058.44493665,0.00030191,2]
[364731831,1749221438700,-1040.7,0.00030191,2]
[364731832,1749221438711,-17030.11632808,0.00030191,2]
[364731833,1749221438721,-7204.14880197,0.00030191,2]
[364731834,1749221438731,-39971.4774658,0.00030198,2]
[364731836,1749221438741,-4050.27127681,0.00030198,2]
[364731839,1749221438757,-532.83131886,0.00030198,2]
[364731933,1749221439645,-1126.2499998,0.00030198,2]
[364731949,1749221439770,-2393.75537001,0.00030198,2]
[364731962,1749221439889,-872.7999988,0.00030198,2]
[364731964,1749221439900,-2596.1308,0.00030198,2]
[364732022,1749221440420,-410.39704996,0.00030164,7]
[364732024,1749221440432,-69.60295004,0.00030164,7]
[364732026,1749221440443,-24448.70524562,0.00030198,2]
[364732028,1749221440453,-1412.47,0.000302,2]
[364732030,1749221440462,-14408.2976039,0.000302,2]
[364732032,1749221440471,-355.10676728,0.00030202,2]
[364732034,1749221440481,-79942.9549317,0.00030208,2]
[364732036,1749221440490,-72041.4880197,0.00030208,2]
[364732038,1749221440500,-1164.0,0.0003021,2]
[364732040,1749221440510,-944.0,0.0003021,2]